fUST/lending_fUST_20240530
["ID","MTS","AMOUNT","RATE_DAILY","PERIOD"]
[328196599,1717043923131,181.70950151,9.999e-05,2]
[328196600,1717043963126,922.60433834,0.00014,2]
[328196601,1717043983071,920.62350112,0.00014,2]
[328196602,1717044008021,264.49,0.00010959,2]
[328196603,1717044018563,220.41,0.00010959,2]
[328196604,1717044029391,183.67,0.00010959,2]
[328196605,1717044039942,153.06,0.00010959,2]
[328196606,1717044050726,765.34,0.00010959,2]
[328196607,1717044239756,155.18645126,0.00010959,2]
[328196608,1717044257680,154.92253873,0.00010959,2]
[328196609,1717044273677,154.92253873,0.00010959,2]
[328196610,1717044295688,154.92253873,0.00010959,2]
[328196611,1717044313690,154.98705191,0.00010959,2]
[328196733,1717044638368,-1190.680811,0.00014156,2]
[328196734,1717044638377,-3109.518619,0.00014273,2]
[328196777,1717044643818,-791.45284199,0.00014273,2]
[328196780,1717044643828,-24900.0,0.00014274,2]
[328196781,1717044643837,-250.0,0.00014349,2]
[328196782,1717044643847,-181.54627107,0.00014436,2]
[328196783,1717044643856,-861.70768677,0.00014584,2]
[328196784,1717044643864,-621.88262805,0.00014684,2]
[328196785,1717044643873,-189.87567617,0.00014684,2]
[328196787,1717044643882,-190.23424749,0.000156,2]
[328196788,1717044643891,-1595.60187164,0.00015708,2]
[328196789,1717044643899,-1098.46383784,0.00015805,2]
[328196790,1717044643908,-194.70484789,0.00015805,2]
[328196791,1717044643917,-1044.09073715,0.00015805,2]
[328196792,1717044643926,-156.27888698,0.00015805,2]
[328196793,1717044643935,-244.04021163,0.00015805,2]
[328196794,1717044643944,-155.46448663,0.00015805,2]
[328196795,1717044643953,-1821.30674736,0.00015805,2]
[328196796,1717044643963,-1847.75026358,0.00015805,2]
[328196797,1717044643972,-207.8748653,0.00015806,2]
[328196798,1717044643981,-2405.04921735,0.00015806,2]
[328196799,1717044643991,-290.81246165,0.00015807,2]
[328196800,1717044644000,-182.64711059,0.00015807,2]
[328196801,1717044644011,-38140.06883657,0.00015807,2]
[328196840,1717044646504,-609.41024368,0.00015807,2]
[328196841,1717044646513,-67.58975632,0.00015808,2]
[328196842,1717044646524,-3481.23342668,0.00015808,2]
[328196843,1717044646533,-286.20643645,0.00015809,2]
[328196844,1717044646543,-154.87609912,0.00015809,2]
[328196845,1717044646552,-227.70539002,0.00015809,2]
[328196846,1717044646562,-6201.17676202,0.00015809,2]
[328196847,1717044646573,-8622.95718362,0.00015809,2]
[328196848,1717045102717,154.86062544,9.999e-05,2]
[328196849,1717045422254,-200.0,0.00019178,7]
[328196850,1717045461389,-9698.93802037,0.00019178,7]
[328196851,1717045528674,6751.73813387,0.00019178,7]
[328196852,1717045572077,1087.03329695,0.00018,7]
[328196853,1717045615666,-1453.29504788,0.0002,10]
[328196854,1717045632454,1453.29504788,0.0002,10]
[328196855,1717045648482,1453.29504788,0.0002,10]
[328196856,1717045648927,2462.29054881,0.00019178,7]
[328196857,1717045672453,1453.29504788,0.0002,10]
[328196858,1717045694457,291.33320181,0.0002,10]
[328196920,1717045832573,-771.765858,0.00014245,2]
[328196922,1717045832582,-154.92253873,0.00014403,2]
[328196924,1717045832592,-352.92997326,0.00014404,2]
[328196926,1717045832601,-24900.0,0.00014405,2]
[328196928,1717045832611,-155.06072339,0.00014808,2]
[328196930,1717045832620,-155.6448647,0.00014808,2]
[328196932,1717045832630,-228.39171351,0.00014808,2]
[328196934,1717045832639,-187.63705347,0.00014808,2]
[328196936,1717045832649,-175.80560738,0.00014808,2]
[328196939,1717045832658,-158.72495376,0.00014809,2]
[328196940,1717045832667,-155.34659042,0.00015,2]
[328196942,1717045832676,-1101.91721998,0.00015,2]
[328196945,1717045832686,-150.44771377,0.00015407,2]
[328196948,1717045832695,-1276.48149732,0.0001571,2]
[328196951,1717045832704,-258.57613201,0.00015808,2]
[328196955,1717045832713,-42894.59849723,0.00015809,2]
[328196957,1717045832723,-165.00465452,0.0001581,2]
[328196960,1717045832733,-1314.63117139,0.0001581,2]
[328196963,1717045832742,-189.76142035,0.0001581,2]
[328196966,1717045832751,-691.19683481,0.0001581,2]
[328196969,1717045832761,-155.5546737,0.0001581,2]
[328196972,1717045832772,-1077.13470475,0.0001581,2]
[328196973,1717045832782,-155.27105281,0.0001581,2]
[328196976,1717045832791,-271.63362366,0.0001581,2]
[328196977,1717045832800,-164.184018,0.0001581,2]
[328196980,1717045832810,-457.61806044,0.0001581,2]
[328196981,1717045832819,-184.76422983,0.0001581,2]
[328196983,1717045832828,-155.06849328,0.0001581,2]
[328196985,1717045832837,-155.33944167,0.0001581,2]
[328196987,1717045832846,-173.30888289,0.0001581,2]
[328196989,1717045832856,-155.66892534,0.0001581,2]
[328196992,1717045832865,-276.62302151,0.0001581,2]
[328196994,1717045832875,-166.0782418,0.0001581,2]
[328196995,1717045832883,-156.84265664,0.0001581,2]
[328196997,1717045832893,-352.74930367,0.0001581,2]
[328197000,1717045832903,-155.61008449,0.0001581,2]
[328197001,1717045832911,-155.32506392,0.0001581,2]
[328197003,1717045832921,-282.35149363,0.0001581,2]
[328197006,1717045832931,-204.58599746,0.0001581,2]
[328197008,1717045832941,-155.90719302,0.0001581,2]
[328197009,1717045832950,-155.42559158,0.0001581,2]
[328197011,1717045832959,-913.96559083,0.0001581,2]
[328197013,1717045832968,-227.64999549,0.0001581,2]
[328197015,1717045832978,-157.62967689,0.0001581,2]
[328197017,1717045832987,-155.56601865,0.0001581,2]
[328197020,1717045832996,-155.43528417,0.0001581,2]
[328197022,1717045833008,-155.0788246,0.0001581,2]
[328197024,1717045833020,-625.36455707,0.0001581,2]
[328197026,1717045833030,-382.77257976,0.0001581,2]
[328197028,1717045833039,-155.73251408,0.00015811,2]
[328197030,1717045833047,-155.04445974,0.00015811,2]
[328197031,1717045833056,-155.09410031,0.00015811,2]
[328197033,1717045833066,-383.01899267,0.00015811,2]
[328197036,1717045833077,-1902.50814581,0.00015811,2]
[328197037,1717045833087,-286.21838123,0.00015811,2]
[328197039,1717045833096,-282.6,0.00016053,2]
[328197042,1717045833106,-9565.83532256,0.00016088,2]
[328197043,1717045833116,-154.92253873,0.000165,2]
[328197046,1717045833128,-274.92390662,0.000165,2]
[328197048,1717045833137,-1276.4814973,0.00016758,2]
[328197050,1717045833147,-1276.4814973,0.00017805,2]
[328197052,1717045833156,-896.7707273,0.00018,2]
[328197054,1717045833166,-1276.4814973,0.00018853,2]
[328197056,1717045833175,-912.19538917,0.000189,2]
[328197058,1717045833187,-20659.235498,0.00019174,2]
[328197060,1717045833196,-196.034005,0.00019174,2]
[328197062,1717045833206,-151.0,0.00019174,2]
[328197064,1717045833215,-151.0,0.00019174,2]
[328197066,1717045833224,-155.165195,0.00019174,2]
[328197068,1717045833233,-151.0,0.00019174,2]
[328197070,1717045833242,-151.0,0.00019174,2]
[328197072,1717045833252,-151.0,0.00019174,2]
[328197074,1717045833261,-249.752271,0.00019174,2]
[328197076,1717045833272,-268.212704,0.00019174,2]
[328197078,1717045833282,-268.212704,0.00019174,2]
[328197080,1717045833291,-268.212704,0.00019174,2]
[328197082,1717045833300,-268.212704,0.00019174,2]
[328197084,1717045833309,-151.0,0.00019174,2]
[328197086,1717045833322,-151.0,0.00019174,2]
[328197088,1717045833331,-151.0,0.00019174,2]
[328197090,1717045833340,-151.0,0.00019174,2]
[328197092,1717045833349,-252.442535,0.00019174,2]
[328197094,1717045833359,-252.442535,0.00019174,2]
[328197096,1717045833369,-151.0,0.00019174,2]
[328197097,1717045833378,-434.489207,0.00019174,2]
[328197099,1717045833389,-434.489207,0.00019174,2]
[328197101,1717045833401,-152.785277,0.00019174,2]
[328197103,1717045833411,-171.97942959,0.00019176,2]
[328197105,1717045833420,-3875.16221503,0.00019178,7]
[328197107,1717045833430,-163.67244167,0.00019178,2]
[328197109,1717045833439,-500.0,0.00019178,2]
[328197111,1717045833448,-1354.12153714,0.00019178,2]
[328197113,1717045833458,-446.33686512,0.00019178,2]
[328197114,1717045833466,-500.0,0.00019178,2]
[328197115,1717045833476,-500.0,0.00019178,2]
[328197116,1717045833485,-450.95688966,0.00019178,2]
[328197118,1717045833494,-500.0,0.00019178,2]
[328197119,1717045833503,-1354.12153714,0.00019178,2]
[328197120,1717045833512,-500.0,0.00019178,2]
[328197121,1717045833524,-500.0,0.00019178,2]
[328197122,1717045833532,-500.0,0.00019178,2]
[328197123,1717045833542,-500.0,0.00019178,2]
[328197124,1717045833551,-1354.12153714,0.00019178,2]
[328197125,1717045833560,-500.0,0.00019178,2]
[328197126,1717045833569,-500.0,0.00019178,2]
[328197127,1717045833578,-1354.12153714,0.00019178,2]
[328197128,1717045833587,-262.84892338,0.00019178,2]
[328197129,1717045833596,-500.0,0.00019178,2]
[328197130,1717045833605,-500.0,0.00019178,2]
[328197131,1717045833615,-1354.12153714,0.00019178,2]
[328197132,1717045833623,-500.0,0.00019178,2]
[328197133,1717045833632,-500.0,0.00019178,2]
[328197134,1717045833641,-1354.12153714,0.00019178,2]
[328197136,1717045833650,-500.0,0.00019178,2]
[328197137,1717045833659,-435.27442228,0.00019178,2]
[328197138,1717045833668,-1354.12153714,0.00019178,2]
[328197140,1717045833678,-500.0,0.00019178,2]
[328197141,1717045833687,-1354.12153714,0.00019178,2]
[328197142,1717045833696,-375.64654379,0.00019178,2]
[328197144,1717045833705,-1354.12153714,0.00019178,2]
[328197145,1717045833715,-500.0,0.00019178,2]
[328197146,1717045833724,-1354.12153714,0.00019178,2]
[328197147,1717045833734,-500.0,0.00019178,2]
[328197148,1717045833743,-1354.12153714,0.00019178,2]
[328197149,1717045833752,-1354.12153714,0.00019178,2]
[328197150,1717045833762,-500.0,0.00019178,2]
[328197151,1717045833771,-1354.12153714,0.00019178,2]
[328197152,1717045833780,-500.0,0.00019178,2]
[328197153,1717045833790,-1354.12153714,0.00019178,2]
[328197154,1717045833799,-500.0,0.00019178,2]
[328197155,1717045833808,-1354.12153714,0.00019178,2]
[328197156,1717045833817,-1354.12153714,0.00019178,2]
[328197157,1717045833826,-500.0,0.00019178,2]
[328197158,1717045833835,-1354.12153714,0.00019178,2]
[328197159,1717045833845,-500.0,0.00019178,2]
[328197160,1717045833854,-1354.12153714,0.00019178,2]
[328197161,1717045833864,-500.0,0.00019178,2]
[328197162,1717045833873,-1354.12153714,0.00019178,2]
[328197163,1717045833882,-500.0,0.00019178,2]
[328197164,1717045833891,-500.0,0.00019178,2]
[328197165,1717045833900,-1354.12153714,0.00019178,2]
[328197166,1717045833910,-1354.12153714,0.00019178,2]
[328197167,1717045833919,-500.0,0.00019178,2]
[328197168,1717045833928,-1354.12153714,0.00019178,2]
[328197169,1717045833937,-500.0,0.00019178,2]
[328197170,1717045833946,-1354.12153714,0.00019178,2]
[328197171,1717045833955,-1354.12153714,0.00019178,2]
[328197172,1717045833965,-500.0,0.00019178,2]
[328197173,1717045833974,-1354.12153714,0.00019178,2]
[328197174,1717045833983,-1354.12153714,0.00019178,2]
[328197175,1717045833992,-1354.12153714,0.00019178,2]
[328197176,1717045834002,-1354.12153714,0.00019178,2]
[328197177,1717045834011,-500.0,0.00019178,2]
[328197178,1717045834021,-1354.12153714,0.00019178,2]
[328197179,1717045834030,-500.0,0.00019178,2]
[328197180,1717045834040,-1354.12153714,0.00019178,2]
[328197181,1717045834050,-1354.12153714,0.00019178,2]
[328197182,1717045834059,-500.0,0.00019178,2]
[328197183,1717045834068,-1354.12153714,0.00019178,2]
[328197184,1717045834078,-500.0,0.00019178,2]
[328197185,1717045834087,-1354.12153714,0.00019178,2]
[328197186,1717045834096,-1354.12153714,0.00019178,2]
[328197187,1717045834106,-1354.12153714,0.00019178,2]
[328197188,1717045834115,-1354.12153714,0.00019178,2]
[328197189,1717045834125,-332.00887731,0.00019178,2]
[328197190,1717045834135,-1354.12153714,0.00019178,2]
[328197191,1717045834144,-1354.12153714,0.00019178,2]
[328197192,1717045834154,-1354.12153714,0.00019178,2]
[328197193,1717045834163,-1354.12153714,0.00019178,2]
[328197194,1717045834173,-1354.12153714,0.00019178,2]
[328197195,1717045834182,-1354.12153714,0.00019178,2]
[328197196,1717045834191,-1354.12153714,0.00019178,2]
[328197197,1717045834201,-1354.12153714,0.00019178,2]
[328197198,1717045834210,-1354.12153714,0.00019178,2]
[328197199,1717045834219,-1354.12153714,0.00019178,2]
[328197200,1717045834228,-500.0,0.00019178,2]
[328197201,1717045834238,-2245.8719442,0.00019178,2]
[328197202,1717045834247,-2245.8719442,0.00019178,2]
[328197203,1717045834256,-2245.8719442,0.00019178,2]
[328197204,1717045834265,-2245.8719442,0.00019178,2]
[328197205,1717045834277,-2245.8719442,0.00019178,2]
[328197206,1717045834287,-2245.8719442,0.00019178,2]
[328197207,1717045834404,-2245.8719442,0.00019178,2]
[328197208,1717045834413,-2245.8719442,0.00019178,2]
[328197209,1717045834423,-2245.8719442,0.00019178,2]
[328197210,1717045834432,-2245.8719442,0.00019178,2]
[328197211,1717045834441,-2245.8719442,0.00019178,2]
[328197212,1717045834450,-2245.8719442,0.00019178,2]
[328197213,1717045834459,-2245.8719442,0.00019178,2]
[328197214,1717045834468,-2245.8719442,0.00019178,2]
[328197215,1717045834478,-2245.8719442,0.00019178,2]
[328197216,1717045834487,-2245.8719442,0.00019178,2]
[328197217,1717045834496,-2245.8719442,0.00019178,2]
[328197218,1717045834505,-2245.8719442,0.00019178,2]
[328197219,1717045834515,-2245.8719442,0.00019178,2]
[328197220,1717045834526,-2245.8719442,0.00019178,2]
[328197221,1717045834535,-2245.8719442,0.00019178,2]
[328197222,1717045834544,-2245.8719442,0.00019178,2]
[328197223,1717045834554,-2245.87194422,0.00019178,2]
[328197224,1717045834564,-2245.87194422,0.00019178,2]
[328197225,1717045834573,-222.24168546,0.00019178,2]
[328197226,1717045834582,-152.07201692,0.00019178,2]
[328197227,1717045834592,-192.95543257,0.00019178,2]
[328197228,1717045834601,-234.06211774,0.00019178,2]
[328197229,1717045834610,-500.0,0.00019178,2]
[328197230,1717045834619,-500.0,0.00019178,2]
[328197231,1717045834629,-500.0,0.00019178,2]
[328197232,1717045834638,-500.0,0.00019178,2]
[328197233,1717045834648,-450.0,0.00019178,2]
[328197234,1717045834658,-500.0,0.00019178,2]
[328197235,1717045834669,-500.0,0.00019178,2]
[328197236,1717045834678,-500.0,0.00019178,2]
[328197237,1717045834687,-500.0,0.00019178,2]
[328197238,1717045834696,-500.0,0.00019178,2]
[328197239,1717045834706,-638.88466874,0.00019178,2]
[328197240,1717045834715,-500.0,0.00019178,2]
[328197241,1717045834725,-500.0,0.00019178,2]
[328197242,1717045834734,-500.0,0.00019178,2]
[328197243,1717045834743,-151.0,0.00019178,2]
[328197244,1717045834752,-151.0,0.00019178,2]
[328197245,1717045834761,-151.0,0.00019178,2]
[328197246,1717045834772,-151.0,0.00019178,2]
[328197247,1717045834780,-151.0,0.00019178,2]
[328197248,1717045834790,-151.0,0.00019178,2]
[328197249,1717045834799,-173.262543,0.00019178,2]
[328197250,1717045834808,-151.0,0.00019178,2]
[328197251,1717045834817,-151.0,0.00019178,2]
[328197252,1717045834827,-287.68896054,0.00019178,2]
[328197253,1717045834836,-268.212704,0.00019178,2]
[328197254,1717045834845,-268.212704,0.00019178,2]
[328197255,1717045834854,-268.212704,0.00019178,2]
[328197256,1717045834863,-268.212704,0.00019178,2]
[328197257,1717045834872,-268.212704,0.00019178,2]
[328197258,1717045834882,-268.212704,0.00019178,2]
[328197259,1717045834891,-268.212704,0.00019178,2]
[328197260,1717045834900,-268.212704,0.00019178,2]
[328197261,1717045834910,-268.212704,0.00019178,2]
[328197262,1717045834919,-268.212704,0.00019178,2]
[328197263,1717045834929,-268.212704,0.00019178,2]
[328197264,1717045834938,-268.212704,0.00019178,2]
[328197265,1717045834947,-268.212704,0.00019178,2]
[328197266,1717045834956,-268.212704,0.00019178,2]
[328197267,1717045834965,-268.212704,0.00019178,2]
[328197268,1717045834975,-268.212702,0.00019178,2]
[328197269,1717045834984,-151.0,0.00019178,2]
[328197270,1717045834993,-151.0,0.00019178,2]
[328197271,1717045835003,-151.0,0.00019178,2]
[328197272,1717045835012,-151.0,0.00019178,2]
[328197273,1717045835022,-151.0,0.00019178,2]
[328197274,1717045835032,-151.0,0.00019178,2]
[328197275,1717045835041,-151.0,0.00019178,2]
[328197276,1717045835050,-151.0,0.00019178,2]
[328197277,1717045835059,-151.0,0.00019178,2]
[328197278,1717045835069,-151.0,0.00019178,2]
[328197279,1717045835079,-265.998598,0.00019178,2]
[328197280,1717045835089,-151.0,0.00019178,2]
[328197281,1717045835098,-151.0,0.00019178,2]
[328197282,1717045835108,-151.0,0.00019178,2]
[328197283,1717045835118,-151.0,0.00019178,2]
[328197284,1717045835127,-151.0,0.00019178,2]
[328197285,1717045835136,-151.0,0.00019178,2]
[328197286,1717045835146,-151.0,0.00019178,2]
[328197287,1717045835155,-151.0,0.00019178,2]
[328197288,1717045835165,-151.0,0.00019178,2]
[328197289,1717045835174,-151.0,0.00019178,2]
[328197290,1717045835183,-151.0,0.00019178,2]
[328197291,1717045835193,-151.0,0.00019178,2]
[328197292,1717045835202,-151.0,0.00019178,2]
[328197293,1717045835212,-151.0,0.00019178,2]
[328197294,1717045835221,-252.442535,0.00019178,2]
[328197295,1717045835231,-252.442535,0.00019178,2]
[328197296,1717045835240,-252.442535,0.00019178,2]
[328197297,1717045835249,-252.442535,0.00019178,2]
[328197298,1717045835259,-252.442535,0.00019178,2]
[328197299,1717045835270,-252.442535,0.00019178,2]
[328197300,1717045835280,-252.442535,0.00019178,2]
[328197301,1717045835293,-252.442535,0.00019178,2]
[328197302,1717045835304,-252.442535,0.00019178,2]
[328197303,1717045835314,-252.442535,0.00019178,2]
[328197304,1717045835328,-252.442535,0.00019178,2]
[328197305,1717045835337,-252.442535,0.00019178,2]
[328197306,1717045835347,-252.442535,0.00019178,2]
[328197307,1717045835356,-252.442535,0.00019178,2]
[328197308,1717045835366,-252.442535,0.00019178,2]
[328197309,1717045835376,-252.442535,0.00019178,2]
[328197310,1717045835385,-252.442535,0.00019178,2]
[328197311,1717045835396,-252.442536,0.00019178,2]
[328197312,1717045835405,-151.0,0.00019178,2]
[328197313,1717045835414,-151.0,0.00019178,2]
[328197314,1717045835423,-151.0,0.00019178,2]
[328197315,1717045835432,-151.0,0.00019178,2]
[328197316,1717045835441,-151.0,0.00019178,2]
[328197317,1717045835450,-151.0,0.00019178,2]
[328197318,1717045835459,-151.0,0.00019178,2]
[328197319,1717045835471,-291.051908,0.00019178,2]
[328197320,1717045835484,-434.489207,0.00019178,2]
[328197321,1717045835498,-434.489207,0.00019178,2]
[328197322,1717045835511,-434.489207,0.00019178,2]
[328197323,1717045835524,-434.489207,0.00019178,2]
[328197324,1717045835535,-434.489207,0.00019178,2]
[328197325,1717045835545,-434.489207,0.00019178,2]
[328197326,1717045835558,-434.489207,0.00019178,2]
[328197327,1717045835569,-434.489207,0.00019178,2]
[328197328,1717045835581,-434.489207,0.00019178,2]
[328197329,1717045835593,-434.489207,0.00019178,2]
[328197330,1717045835605,-434.489207,0.00019178,2]
[328197331,1717045835618,-434.489207,0.00019178,2]
[328197332,1717045835629,-434.489207,0.00019178,2]
[328197333,1717045835642,-434.489207,0.00019178,2]
[328197334,1717045835655,-434.489207,0.00019178,2]
[328197335,1717045835669,-434.489207,0.00019178,2]
[328197336,1717045835681,-434.489207,0.00019178,2]
[328197337,1717045835692,-434.489207,0.00019178,2]
[328197338,1717045835703,-166.560177,0.00019178,2]
[328197339,1717045835714,-151.0,0.00019178,2]
[328197340,1717045835726,-153.854975,0.00019178,2]
[328197341,1717045835737,-166.362345,0.00019178,2]
[328197342,1717045835749,-409.4038,0.00019507,2]
[328197343,1717045835762,-1276.4814973,0.000199,2]
[328197344,1717045835775,-154.93802479,0.0002,2]
[328197345,1717045835786,-349.00301243,0.0002,2]
[328197346,1717045835796,-1317.88709904,0.0002,2]
[328197347,1717045835806,-282.0,0.0002,2]
[328197348,1717045835816,-87956.14262183,0.0002,2]
[328197349,1717045835827,-570.51755246,0.0002,2]
[328197350,1717045835839,-155.1591115,0.0002,2]
[328197351,1717045835850,-286.20643645,0.0002,2]
[328197352,1717045835861,-3000.0,0.00020547,2]
[328197353,1717045835873,-3000.0,0.00020547,2]
[328197354,1717045835885,-3000.0,0.00020547,2]
[328197355,1717045835897,-2611.98228328,0.00020547,2]
[328197356,1717045835909,-151.0,0.00020548,2]
[328197357,1717045835922,-151.0,0.00020548,2]
[328197358,1717045835934,-151.0,0.00020548,2]
[328197359,1717045835946,-151.0,0.00020548,2]
[328197360,1717045835956,-151.0,0.00020548,2]
[328197361,1717045835966,-151.0,0.00020548,2]
[328197362,1717045835976,-152.450092,0.00020548,2]
[328197363,1717045835986,-516.369,0.00020958,2]
[328197364,1717045835998,-217.293,0.00020958,2]
[328197365,1717045836010,-462.87246104,0.00021,2]
[328197366,1717045836024,-7902.59454324,0.00021,2]
[328197367,1717045836036,-10055.83782448,0.00021,2]
[328197368,1717045836048,-198.1489967,0.00021,2]
[328197369,1717045836057,-771.765858,0.00021368,2]
[328197370,1717045836068,-306.0,0.00021644,2]
[328197371,1717045836079,-151.0,0.00021918,2]
[328197372,1717045836090,-151.0,0.00021918,2]
[328197373,1717045836103,-155.768687,0.00021918,2]
[328197374,1717045836114,-438.014545,0.00021918,2]
[328197375,1717045836124,-438.014545,0.00021918,2]
[328197376,1717045836135,-438.014545,0.00021918,2]
[328197377,1717045836145,-438.014545,0.00021918,2]
[328197378,1717045836156,-438.014545,0.00021918,2]
[328197379,1717045836167,-438.014545,0.00021918,2]
[328197380,1717045836177,-438.014545,0.00021918,2]
[328197381,1717045836189,-438.014545,0.00021918,2]
[328197382,1717045836200,-438.014545,0.00021918,2]
[328197383,1717045836211,-438.014545,0.00021918,2]
[328197384,1717045836221,-438.014545,0.00021918,2]
[328197385,1717045836231,-438.014545,0.00021918,2]
[328197386,1717045836243,-438.014545,0.00021918,2]
[328197387,1717045836254,-438.014545,0.00021918,2]
[328197388,1717045836265,-438.014545,0.00021918,2]
[328197389,1717045836278,-438.014545,0.00021918,2]
[328197390,1717045836290,-438.014545,0.00021918,2]
[328197391,1717045836301,-438.014545,0.00021918,2]
[328197392,1717045836312,-438.014545,0.00021918,2]
[328197393,1717045836327,-438.014543,0.00021918,2]
[328197394,1717045836339,-168.461499,0.00021918,2]
[328197395,1717045836349,-1308.865968,0.00021918,2]
[328197396,1717045836362,-1308.865968,0.00021918,2]
[328197397,1717045836373,-1308.865968,0.00021918,2]
[328197398,1717045836383,-1308.865968,0.00021918,2]
[328197399,1717045836394,-1308.865968,0.00021918,2]
[328197400,1717045836406,-1308.865968,0.00021918,2]
[328197401,1717045836417,-1308.865968,0.00021918,2]
[328197402,1717045836428,-1308.865968,0.00021918,2]
[328197403,1717045836438,-1308.865968,0.00021918,2]
[328197404,1717045836449,-1308.865968,0.00021918,2]
[328197405,1717045836460,-1308.865968,0.00021918,2]
[328197406,1717045836471,-1308.865968,0.00021918,2]
[328197407,1717045836481,-1308.865968,0.00021918,2]
[328197408,1717045836492,-1308.865968,0.00021918,2]
[328197409,1717045836503,-1308.865968,0.00021918,2]
[328197410,1717045836514,-1308.865968,0.00021918,2]
[328197411,1717045836527,-1308.865968,0.00021918,2]
[328197412,1717045836537,-1308.865968,0.00021918,2]
[328197413,1717045836547,-1308.865958,0.00021918,2]
[328197414,1717045836559,-151.0,0.00021918,2]
[328197415,1717045836570,-151.0,0.00021918,2]
[328197416,1717045836581,-151.0,0.00021918,2]
[328197417,1717045836592,-154.760367,0.00021918,2]
[328197418,1717045836603,-500.0,0.00022,2]
[328197419,1717045836614,-500.0,0.00022,2]
[328197420,1717045836624,-500.0,0.00022,2]
[328197421,1717045836635,-500.0,0.00022,2]
[328197422,1717045836647,-500.0,0.00022,2]
[328197423,1717045836658,-500.0,0.00022,2]
[328197424,1717045836669,-500.0,0.00022,2]
[328197425,1717045836680,-500.0,0.00022,2]
[328197426,1717045836691,-500.0,0.00022,2]
[328197427,1717045836702,-500.0,0.00022,2]
[328197428,1717045836713,-500.0,0.00022,2]
[328197429,1717045836724,-500.0,0.00022,2]
[328197430,1717045836736,-500.0,0.00022,2]
[328197431,1717045836878,-500.0,0.00022,2]
[328197432,1717045836888,-500.0,0.00022,2]
[328197433,1717045836898,-500.0,0.00022,2]
[328197434,1717045836907,-500.0,0.00022,2]
[328197435,1717045836917,-500.0,0.00022,2]
[328197436,1717045836926,-500.0,0.00022,2]
[328197437,1717045836935,-500.0,0.00022,2]
[328197438,1717045836944,-500.0,0.00022,2]
[328197439,1717045836953,-500.0,0.00022,2]
[328197440,1717045836962,-500.0,0.00022,2]
[328197441,1717045836971,-500.0,0.00022,2]
[328197442,1717045836980,-500.0,0.00022,2]
[328197443,1717045836990,-500.0,0.00022,2]
[328197444,1717045836999,-500.0,0.00022,2]
[328197445,1717045837008,-500.0,0.00022,2]
[328197446,1717045837018,-500.0,0.00022,2]
[328197447,1717045837028,-500.0,0.00022,2]
[328197448,1717045837037,-500.0,0.00022,2]
[328197449,1717045837046,-500.0,0.00022,2]
[328197450,1717045837056,-500.0,0.00022,2]
[328197451,1717045837065,-500.0,0.00022,2]
[328197452,1717045837075,-526.0,0.00022,2]
[328197453,1717045837083,-912.72900322,0.000223,2]
[328197454,1717045837093,-168.461499,0.000232,2]
[328197455,1717045837103,-155.1159323,0.00023507,2]
[328197456,1717045837112,-153.0,0.00023507,2]
[328197457,1717045837122,-153.0,0.00023507,2]
[328197458,1717045837132,-306.2943761,0.00023507,2]
[328197459,1717045837141,-153.9499434,0.00023507,2]
[328197460,1717045837151,-5594.80250339,0.00023827,2]
[328197461,1717045837160,-54191.98656505,0.0002383,2]
[328197462,1717045837170,-557.6126077,0.00023836,2]
[328197463,1717045837180,-912.19538917,0.000239,2]
[328197464,1717045837189,-202.9145244,0.00024329,2]
[328197465,1717045837198,-684.292088,0.00024384,2]
[328197466,1717045837207,-291.9275846,0.00024384,2]
[328197467,1717045837217,-204.8553096,0.00024384,2]
[328197468,1717045837226,-204.8553096,0.00024384,2]